[Event "Titled Tuesday Blitz May 31 Late 2022"]
[White "Ivic, Velimir"]
[Black "Baches Garcia, Guillermo"]
[WhiteFideId "950122"]
[BlackFideId "2209764"]
[WhiteElo "2610"]
[BlackElo "2496"]
[Result "1-0"]
[Round "01"]
[TimeControl "180+1"]
[Date "2022.05.31"]
[WhiteClock "0:01:29"]
[BlackClock "0:00:01"]

1. c4 {[%clk 0:03:00]}  e6 {[%clk 0:02:56]} 2. Nc3 {[%clk 0:03:00]}  d5 {[%clk 0:02:57]} 3. d4 {[%clk 0:03:00]}  Nf6 {[%clk 0:02:57]} 4. Nf3 {[%clk 0:02:59]}  c5 {[%clk 0:02:57]} 5. cxd5 {[%clk 0:02:59]}  Nxd5 {[%clk 0:02:57]} 6. e4 {[%clk 0:03:00]}  Nxc3 {[%clk 0:02:57]} 7. bxc3 {[%clk 0:03:01]}  cxd4 {[%clk 0:02:58]} 8. cxd4 {[%clk 0:03:02]}  Bb4+ {[%clk 0:02:58]} 9. Bd2 {[%clk 0:03:02]}  Bxd2+ {[%clk 0:02:58]} 10. Qxd2 {[%clk 0:03:03]}  O-O {[%clk 0:02:58]} 11. Bc4 {[%clk 0:03:04]}  Nd7 {[%clk 0:02:58]} 12. O-O {[%clk 0:03:04]}  b6 {[%clk 0:02:59]} 13. d5 {[%clk 0:03:05]}  Nc5 {[%clk 0:02:47]} 14. Rfe1 {[%clk 0:03:05]}  exd5 {[%clk 0:02:41]} 15. exd5 {[%clk 0:03:06]}  Qd6 {[%clk 0:02:33]} 16. Ne5 {[%clk 0:03:04]}  Bb7 {[%clk 0:02:25]} 17. Qd4 {[%clk 0:03:03]}  Rad8 {[%clk 0:02:20]} 18. Rad1 {[%clk 0:03:02]}  Rfe8 {[%clk 0:02:08]} 19. Re3 {[%clk 0:03:01]}  a6 {[%clk 0:01:53]} 20. a3 {[%clk 0:03:01]}  b5 {[%clk 0:01:51]} 21. Ba2 {[%clk 0:03:00]}  Re7 {[%clk 0:01:30]} 22. Rde1 {[%clk 0:02:37]}  Rde8 {[%clk 0:01:23]} 23. h4 {[%clk 0:02:25]}  f6 {[%clk 0:00:57]} 24. Ng4 {[%clk 0:01:53]}  Rxe3 {[%clk 0:00:52]} 25. Rxe3 {[%clk 0:01:54]}  Rxe3 {[%clk 0:00:43]} 26. Nxe3 {[%clk 0:01:54]}  g6 {[%clk 0:00:43]} 27. h5 {[%clk 0:01:52]}  Kf7 {[%clk 0:00:41]} 28. hxg6+ {[%clk 0:01:49]}  hxg6 {[%clk 0:00:42]} 29. Qh4 {[%clk 0:01:49]}  Kg7 {[%clk 0:00:36]} 30. Qg4 {[%clk 0:01:48]}  Kf7 {[%clk 0:00:28]} 31. Bb1 {[%clk 0:01:35]}  f5 {[%clk 0:00:24]} 32. Qh4 {[%clk 0:01:36]}  Kg8 {[%clk 0:00:19]} 33. Qg5 {[%clk 0:01:33]}  Ne4 {[%clk 0:00:16]} 34. Bxe4 {[%clk 0:01:29]}  fxe4 {[%clk 0:00:17]} 35. Nf5 {[%clk 0:01:29]}  Qb6 {[%clk 0:00:03]} 36. d6 {[%clk 0:01:30]}  Kf7 {[%clk 0:00:01]} 37. Qe7+ {[%clk 0:01:29]} 1-0


[Site "https://www.chess.com"]

[Event "Titled Tuesday Blitz May 31 Late 2022"]
[White "Jobava, Baadur"]
[Black "Reprintsev, Alexander"]
[WhiteFideId "13601520"]
[BlackFideId "14100541"]
[WhiteElo "2617"]
[BlackElo "2108"]
[Result "1-0"]
[Round "01"]
[TimeControl "180+1"]
[Date "2022.05.31"]
[WhiteClock "0:01:39"]
[BlackClock "0:01:08"]

1. d4 {[%clk 0:02:20]}  d5 {[%clk 0:02:55]} 2. g3 {[%clk 0:02:19]}  Nc6 {[%clk 0:02:49]} 3. Bg2 {[%clk 0:02:20]}  Bf5 {[%clk 0:02:50]} 4. c3 {[%clk 0:02:19]}  e6 {[%clk 0:02:49]} 5. Nf3 {[%clk 0:02:18]}  Nf6 {[%clk 0:02:45]} 6. O-O {[%clk 0:02:18]}  Be7 {[%clk 0:02:45]} 7. Bg5 {[%clk 0:02:18]}  h6 {[%clk 0:02:44]} 8. Bxf6 {[%clk 0:02:16]}  Bxf6 {[%clk 0:02:44]} 9. Nbd2 {[%clk 0:02:17]}  O-O {[%clk 0:02:44]} 10. Re1 {[%clk 0:02:17]}  e5 {[%clk 0:02:38]} 11. dxe5 {[%clk 0:02:18]}  Nxe5 {[%clk 0:02:38]} 12. Nxe5 {[%clk 0:02:19]}  Bxe5 {[%clk 0:02:38]} 13. Qb3 {[%clk 0:02:19]}  Be6 {[%clk 0:02:34]} 14. Rad1 {[%clk 0:02:15]}  c6 {[%clk 0:01:56]} 15. Qxb7 {[%clk 0:02:11]}  Rb8 {[%clk 0:01:55]} 16. Qxc6 {[%clk 0:02:11]}  Rxb2 {[%clk 0:01:55]} 17. Nc4 {[%clk 0:02:07]}  dxc4 {[%clk 0:01:43]} 18. Rxd8 {[%clk 0:02:08]}  Rxd8 {[%clk 0:01:43]} 19. Rc1 {[%clk 0:01:47]}  Rxe2 {[%clk 0:01:33]} 20. Bf1 {[%clk 0:01:43]}  Rxa2 {[%clk 0:01:28]} 21. Bxc4 {[%clk 0:01:41]}  Bxc4 {[%clk 0:01:26]} 22. Qxc4 {[%clk 0:01:42]}  Rdd2 {[%clk 0:01:25]} 23. Qc8+ {[%clk 0:01:41]}  Kh7 {[%clk 0:01:20]} 24. Qf5+ {[%clk 0:01:40]}  g6 {[%clk 0:01:15]} 25. Qxe5 {[%clk 0:01:41]}  Rxf2 {[%clk 0:01:14]} 26. Qd5 {[%clk 0:01:40]}  Rad2 {[%clk 0:01:08]} 27. Qb7 {[%clk 0:01:39]} 1-0


[Site "https://www.chess.com"]

[Event "Titled Tuesday Blitz May 31 Late 2022"]
[White "Jumabayev, Rinat"]
[Black "Szalay, Karoly"]
[WhiteFideId "13702661"]
[BlackFideId "2600544"]
[WhiteElo "2561"]
[BlackElo "2429"]
[Result "0-1"]
[Round "01"]
[TimeControl "180+1"]
[Date "2022.06.01"]
[WhiteClock "0:00:03"]
[BlackClock "0:01:16"]

1. e4 {[%clk 0:03:00]}  e5 {[%clk 0:03:00]} 2. Nf3 {[%clk 0:03:01]}  Nc6 {[%clk 0:03:00]} 3. Bb5 {[%clk 0:03:01]}  a6 {[%clk 0:03:00]} 4. Ba4 {[%clk 0:03:01]}  Nf6 {[%clk 0:03:01]} 5. O-O {[%clk 0:03:01]}  b5 {[%clk 0:03:01]} 6. Bb3 {[%clk 0:03:01]}  Bc5 {[%clk 0:02:59]} 7. d3 {[%clk 0:02:59]}  d6 {[%clk 0:02:59]} 8. c3 {[%clk 0:02:59]}  O-O {[%clk 0:02:59]} 9. Bg5 {[%clk 0:02:58]}  h6 {[%clk 0:02:56]} 10. Bh4 {[%clk 0:02:58]}  Be6 {[%clk 0:02:57]} 11. Nbd2 {[%clk 0:02:49]}  Re8 {[%clk 0:02:53]} 12. Re1 {[%clk 0:02:47]}  Bb6 {[%clk 0:02:37]} 13. Nf1 {[%clk 0:02:43]}  g5 {[%clk 0:02:26]} 14. Bg3 {[%clk 0:02:41]}  Nh5 {[%clk 0:02:26]} 15. Ne3 {[%clk 0:02:31]}  Nf4 {[%clk 0:02:22]} 16. Bxe6 {[%clk 0:01:51]}  fxe6 {[%clk 0:02:17]} 17. d4 {[%clk 0:01:51]}  exd4 {[%clk 0:02:16]} 18. cxd4 {[%clk 0:01:50]}  Qf6 {[%clk 0:02:08]} 19. e5 {[%clk 0:01:50]}  Qg7 {[%clk 0:02:06]} 20. Ng4 {[%clk 0:01:44]}  Red8 {[%clk 0:02:05]} 21. Rc1 {[%clk 0:01:41]}  Nxd4 {[%clk 0:01:50]} 22. Nf6+ {[%clk 0:00:21]}  Kh8 {[%clk 0:01:50]} 23. Bxf4 {[%clk 0:00:21]}  gxf4 {[%clk 0:01:43]} 24. Nxd4 {[%clk 0:00:18]}  dxe5 {[%clk 0:01:43]} 25. Nh5 {[%clk 0:00:16]}  Qf7 {[%clk 0:01:35]} 26. Qg4 {[%clk 0:00:09]}  Bxd4 {[%clk 0:01:27]} 27. Qh4 {[%clk 0:00:09]}  Rg8 {[%clk 0:01:26]} 28. Rc2 {[%clk 0:00:06]}  c5 {[%clk 0:01:22]} 29. g3 {[%clk 0:00:05]}  Rg5 {[%clk 0:01:21]} 30. Nxf4 {[%clk 0:00:05]}  exf4 {[%clk 0:01:21]} 31. Qxh6+ {[%clk 0:00:05]}  Qh7 {[%clk 0:01:19]} 32. Qxg5 {[%clk 0:00:06]}  Qxc2 {[%clk 0:01:20]} 33. Rxe6 {[%clk 0:00:03]}  Qxf2+ {[%clk 0:01:16]} 0-1


[Site "https://www.chess.com"]

[Event "Titled Tuesday Blitz May 31 Late 2022"]
[White "Keller, Peter"]
[Black "Zarubitski, Viachaslau"]
[WhiteFideId "1272105"]
[BlackFideId "13509373"]
[WhiteElo "2275"]
[BlackElo "2325"]
[Result "1-0"]
[Round "01"]
[TimeControl "180+1"]
[Date "2022.06.01"]
[WhiteClock "0:00:07"]
[BlackClock "0:00:23"]

1. e4 {[%clk 0:03:00]}  e6 {[%clk 0:02:55]} 2. d4 {[%clk 0:02:59]}  b6 {[%clk 0:02:56]} 3. Bd3 {[%clk 0:02:59]}  d5 {[%clk 0:02:54]} 4. Nc3 {[%clk 0:02:42]}  Bb7 {[%clk 0:02:50]} 5. Nf3 {[%clk 0:02:37]}  Bb4 {[%clk 0:02:39]} 6. e5 {[%clk 0:02:33]}  Ne7 {[%clk 0:02:34]} 7. O-O {[%clk 0:02:30]}  Nd7 {[%clk 0:02:29]} 8. a3 {[%clk 0:02:26]}  Bxc3 {[%clk 0:02:28]} 9. bxc3 {[%clk 0:02:27]}  c5 {[%clk 0:02:28]} 10. a4 {[%clk 0:02:15]}  Ng6 {[%clk 0:02:05]} 11. g3 {[%clk 0:02:04]}  Qc7 {[%clk 0:01:58]} 12. h4 {[%clk 0:02:03]}  c4 {[%clk 0:01:36]} 13. Bxg6 {[%clk 0:02:02]}  hxg6 {[%clk 0:01:36]} 14. Ng5 {[%clk 0:02:02]}  Nf8 {[%clk 0:01:29]} 15. Ba3 {[%clk 0:01:53]}  Nh7 {[%clk 0:01:28]} 16. f4 {[%clk 0:01:49]}  Qd7 {[%clk 0:01:17]} 17. Bd6 {[%clk 0:01:23]}  f6 {[%clk 0:01:08]} 18. Nf3 {[%clk 0:01:20]}  Kf7 {[%clk 0:00:59]} 19. a5 {[%clk 0:01:16]}  Bc6 {[%clk 0:00:57]} 20. Qb1 {[%clk 0:01:13]}  Nf8 {[%clk 0:00:51]} 21. axb6 {[%clk 0:01:09]}  axb6 {[%clk 0:00:50]} 22. Rxa8 {[%clk 0:00:52]}  Bxa8 {[%clk 0:00:51]} 23. Qxb6 {[%clk 0:00:52]}  Qa4 {[%clk 0:00:51]} 24. Ng5+ {[%clk 0:00:40]}  fxg5 {[%clk 0:00:45]} 25. fxg5+ {[%clk 0:00:41]}  Kg8 {[%clk 0:00:45]} 26. Bxf8 {[%clk 0:00:15]}  Qd7 {[%clk 0:00:45]} 27. Bd6 {[%clk 0:00:06]}  Kh7 {[%clk 0:00:43]} 28. Ra1 {[%clk 0:00:06]}  Qf7 {[%clk 0:00:40]} 29. Rf1 {[%clk 0:00:06]}  Qd7 {[%clk 0:00:40]} 30. Ra1 {[%clk 0:00:06]}  Qf7 {[%clk 0:00:40]} 31. Rf1 {[%clk 0:00:06]}  Qe8 {[%clk 0:00:40]} 32. Qc7 {[%clk 0:00:06]}  Rg8 {[%clk 0:00:36]} 33. Rf7 {[%clk 0:00:06]}  Qa4 {[%clk 0:00:32]} 34. Bf8 {[%clk 0:00:06]}  Qa1+ {[%clk 0:00:25]} 35. Kh2 {[%clk 0:00:06]}  Rxf8 {[%clk 0:00:23]} 36. Rxg7+ {[%clk 0:00:06]}  Kh8 {[%clk 0:00:23]} 37. Rh7+ {[%clk 0:00:07]} 1-0


[Site "https://www.chess.com"]

[Event "Titled Tuesday Blitz May 31 Late 2022"]
[White "Krishnan, Varun"]
[Black "Novikova, Galina"]
[WhiteFideId "5054508"]
[BlackFideId "4157095"]
[WhiteElo "2628"]
[BlackElo "1863"]
[Result "1-0"]
[Round "01"]
[TimeControl "180+1"]
[Date "2022.06.01"]
[WhiteClock "0:00:04"]
[BlackClock "0:00:02"]

1. e4 {[%clk 0:03:00]}  e6 {[%clk 0:02:58]} 2. d4 {[%clk 0:03:00]}  d5 {[%clk 0:02:59]} 3. Nc3 {[%clk 0:03:00]}  Bb4 {[%clk 0:02:58]} 4. e5 {[%clk 0:03:00]}  c5 {[%clk 0:02:58]} 5. a3 {[%clk 0:03:01]}  Bxc3+ {[%clk 0:02:59]} 6. bxc3 {[%clk 0:03:01]}  Ne7 {[%clk 0:02:59]} 7. Nf3 {[%clk 0:03:02]}  b6 {[%clk 0:02:59]} 8. a4 {[%clk 0:03:02]}  Nd7 {[%clk 0:02:55]} 9. Ba3 {[%clk 0:02:58]}  Bb7 {[%clk 0:02:53]} 10. Bd3 {[%clk 0:02:58]}  h6 {[%clk 0:02:50]} 11. O-O {[%clk 0:02:57]}  Bc6 {[%clk 0:02:38]} 12. a5 {[%clk 0:02:50]}  O-O {[%clk 0:02:32]} 13. Nd2 {[%clk 0:02:40]}  c4 {[%clk 0:02:23]} 14. Be2 {[%clk 0:02:39]}  Re8 {[%clk 0:02:23]} 15. f4 {[%clk 0:02:32]}  bxa5 {[%clk 0:02:18]} 16. g4 {[%clk 0:02:28]}  f5 {[%clk 0:02:06]} 17. Qe1 {[%clk 0:02:19]}  fxg4 {[%clk 0:01:58]} 18. Bxg4 {[%clk 0:02:14]}  Nf5 {[%clk 0:01:58]} 19. Bxf5 {[%clk 0:02:09]}  exf5 {[%clk 0:01:59]} 20. Qg3 {[%clk 0:02:06]}  Nf8 {[%clk 0:01:54]} 21. Nf3 {[%clk 0:01:43]}  Bd7 {[%clk 0:01:54]} 22. Nh4 {[%clk 0:01:39]}  Be6 {[%clk 0:01:49]} 23. Kh1 {[%clk 0:01:31]}  Kh8 {[%clk 0:01:44]} 24. Rg1 {[%clk 0:01:26]}  g5 {[%clk 0:01:02]} 25. Bxf8 {[%clk 0:01:12]}  Rxf8 {[%clk 0:00:59]} 26. Ng6+ {[%clk 0:01:11]}  Kh7 {[%clk 0:00:59]} 27. Nxf8+ {[%clk 0:01:09]}  Qxf8 {[%clk 0:01:00]} 28. fxg5 {[%clk 0:01:09]}  f4 {[%clk 0:00:59]} 29. Qh4 {[%clk 0:01:02]}  Bf5 {[%clk 0:00:58]} 30. Rgf1 {[%clk 0:00:49]}  Be4+ {[%clk 0:00:56]} 31. Kg1 {[%clk 0:00:45]}  f3 {[%clk 0:00:40]} 32. Qxh6+ {[%clk 0:00:24]}  Qxh6 {[%clk 0:00:41]} 33. gxh6 {[%clk 0:00:25]}  Rg8+ {[%clk 0:00:40]} 34. Kf2 {[%clk 0:00:25]}  Rg2+ {[%clk 0:00:41]} 35. Ke3 {[%clk 0:00:26]}  Rxc2 {[%clk 0:00:31]} 36. Rxa5 {[%clk 0:00:25]}  Rxc3+ {[%clk 0:00:31]} 37. Kf4 {[%clk 0:00:25]}  Kxh6 {[%clk 0:00:23]} 38. e6 {[%clk 0:00:25]}  Bg6 {[%clk 0:00:19]} 39. e7 {[%clk 0:00:24]}  Rc2 {[%clk 0:00:19]} 40. Rxf3 {[%clk 0:00:19]}  Rxh2 {[%clk 0:00:16]} 41. Ra6 {[%clk 0:00:18]}  Rh4+ {[%clk 0:00:11]} 42. Ke5 {[%clk 0:00:14]}  Re4+ {[%clk 0:00:12]} 43. Kf6 {[%clk 0:00:14]}  Rxd4 {[%clk 0:00:06]} 44. Rh3+ {[%clk 0:00:12]}  Bh5 {[%clk 0:00:07]} 45. Rxh5+ {[%clk 0:00:12]}  Kxh5 {[%clk 0:00:07]} 46. e8=Q+ {[%clk 0:00:12]}  Kg4 {[%clk 0:00:08]} 47. Qg6+ {[%clk 0:00:12]}  Kf4 {[%clk 0:00:07]} 48. Qg5+ {[%clk 0:00:12]}  Ke4 {[%clk 0:00:07]} 49. Qe5+ {[%clk 0:00:12]}  Kd3 {[%clk 0:00:07]} 50. Ra1 {[%clk 0:00:10]}  Re4 {[%clk 0:00:05]} 51. Rd1+ {[%clk 0:00:09]}  Kc2 {[%clk 0:00:02]} 52. Qxd5 {[%clk 0:00:08]}  Rf4+ {[%clk 0:00:02]} 53. Ke5 {[%clk 0:00:08]}  Rf2 {[%clk 0:00:02]} 54. Re1 {[%clk 0:00:06]}  c3 {[%clk 0:00:02]} 55. Qe4+ {[%clk 0:00:06]}  Kb3 {[%clk 0:00:02]} 56. Rb1+ {[%clk 0:00:06]}  Ka2 {[%clk 0:00:02]} 57. Rb7 {[%clk 0:00:04]}  Ka1 {[%clk 0:00:02]} 58. Qa4+ {[%clk 0:00:04]} 1-0


[Site "https://www.chess.com"]

[Event "Titled Tuesday Blitz May 31 Late 2022"]
[White "Lashkin, Jegor"]
[Black "Zakarian, David"]
[WhiteFideId "13907808"]
[BlackFideId "13301276"]
[WhiteElo "2368"]
[BlackElo "2452"]
[Result "1-0"]
[Round "01"]
[TimeControl "180+1"]
[Date "2022.06.01"]
[WhiteClock "0:00:10"]
[BlackClock "0:00:18"]

1. c4 {[%clk 0:03:00]}  Nf6 {[%clk 0:02:58]} 2. Nf3 {[%clk 0:02:59]}  e6 {[%clk 0:02:58]} 3. g3 {[%clk 0:02:59]}  b6 {[%clk 0:02:57]} 4. Bg2 {[%clk 0:02:59]}  Bb7 {[%clk 0:02:57]} 5. O-O {[%clk 0:03:00]}  Be7 {[%clk 0:02:56]} 6. Nc3 {[%clk 0:03:00]}  O-O {[%clk 0:02:55]} 7. Re1 {[%clk 0:03:00]}  d5 {[%clk 0:02:53]} 8. cxd5 {[%clk 0:02:59]}  exd5 {[%clk 0:02:53]} 9. d4 {[%clk 0:02:58]}  c5 {[%clk 0:02:44]} 10. Bf4 {[%clk 0:02:56]}  Nc6 {[%clk 0:02:41]} 11. Rc1 {[%clk 0:02:55]}  Rc8 {[%clk 0:02:40]} 12. Bh3 {[%clk 0:02:53]}  Ra8 {[%clk 0:02:36]} 13. Nb5 {[%clk 0:02:51]}  Ne8 {[%clk 0:02:22]} 14. dxc5 {[%clk 0:02:47]}  bxc5 {[%clk 0:02:19]} 15. Qb3 {[%clk 0:02:41]}  c4 {[%clk 0:02:11]} 16. Qc2 {[%clk 0:02:35]}  a6 {[%clk 0:02:10]} 17. Nbd4 {[%clk 0:02:30]}  Bd6 {[%clk 0:02:06]} 18. Ng5 {[%clk 0:02:11]}  Nf6 {[%clk 0:01:58]} 19. Nxc6 {[%clk 0:02:02]}  Bxc6 {[%clk 0:01:57]} 20. Bxd6 {[%clk 0:01:53]}  Qxd6 {[%clk 0:01:58]} 21. Rcd1 {[%clk 0:01:51]}  h6 {[%clk 0:01:56]} 22. Nf3 {[%clk 0:01:50]}  Rfd8 {[%clk 0:01:54]} 23. Nd4 {[%clk 0:01:50]}  Bd7 {[%clk 0:01:53]} 24. Bg2 {[%clk 0:01:48]}  Be6 {[%clk 0:01:52]} 25. b3 {[%clk 0:01:46]}  cxb3 {[%clk 0:01:48]} 26. axb3 {[%clk 0:01:46]}  Rac8 {[%clk 0:01:48]} 27. Qd3 {[%clk 0:01:42]}  Qb6 {[%clk 0:01:45]} 28. Ra1 {[%clk 0:01:39]}  a5 {[%clk 0:01:43]} 29. Qd2 {[%clk 0:01:39]}  Rc5 {[%clk 0:01:39]} 30. Ra4 {[%clk 0:01:36]}  Bd7 {[%clk 0:01:29]} 31. Ra3 {[%clk 0:01:33]}  Ra8 {[%clk 0:01:28]} 32. Rea1 {[%clk 0:01:33]}  Ne4 {[%clk 0:01:24]} 33. Bxe4 {[%clk 0:01:05]}  dxe4 {[%clk 0:01:25]} 34. e3 {[%clk 0:00:53]}  Rd5 {[%clk 0:01:20]} 35. Qc2 {[%clk 0:00:49]}  Rc8 {[%clk 0:01:17]} 36. Qxe4 {[%clk 0:00:47]}  Rdc5 {[%clk 0:01:11]} 37. Rd1 {[%clk 0:00:40]}  Bh3 {[%clk 0:01:06]} 38. Raa1 {[%clk 0:00:37]}  Qc7 {[%clk 0:01:00]} 39. Qh4 {[%clk 0:00:37]}  Qd7 {[%clk 0:00:51]} 40. Qf4 {[%clk 0:00:35]}  Qd5 {[%clk 0:00:46]} 41. Qf3 {[%clk 0:00:33]}  Qd7 {[%clk 0:00:41]} 42. Re1 {[%clk 0:00:28]}  Bg4 {[%clk 0:00:30]} 43. Qf4 {[%clk 0:00:23]}  Bh3 {[%clk 0:00:28]} 44. Rad1 {[%clk 0:00:20]}  Qb7 {[%clk 0:00:28]} 45. e4 {[%clk 0:00:18]}  Rd8 {[%clk 0:00:21]} 46. Qh4 {[%clk 0:00:16]}  Bc8 {[%clk 0:00:19]} 47. Qxd8+ {[%clk 0:00:16]}  Kh7 {[%clk 0:00:18]} 48. Qh4 {[%clk 0:00:15]}  Be6 {[%clk 0:00:17]} 49. Nxe6 {[%clk 0:00:15]}  fxe6 {[%clk 0:00:18]} 50. Qg4 {[%clk 0:00:15]}  Qf7 {[%clk 0:00:18]} 51. Rd2 {[%clk 0:00:14]}  Rc3 {[%clk 0:00:18]} 52. Rd6 {[%clk 0:00:10]}  Rxb3 {[%clk 0:00:16]} 53. Qxe6 {[%clk 0:00:10]}  Qxe6 {[%clk 0:00:15]} 54. Rxe6 {[%clk 0:00:11]}  a4 {[%clk 0:00:15]} 55. Ra6 {[%clk 0:00:12]}  Ra3 {[%clk 0:00:16]} 56. Kg2 {[%clk 0:00:10]}  Ra2 {[%clk 0:00:16]} 57. Re3 {[%clk 0:00:10]}  a3 {[%clk 0:00:17]} 58. Raxa3 {[%clk 0:00:10]}  Rxa3 {[%clk 0:00:18]} 59. Rxa3 {[%clk 0:00:10]} 1-0


[Site "https://www.chess.com"]

[Event "Titled Tuesday Blitz May 31 Late 2022"]
[White "Lehtosaari, Mauri"]
[Black "Kobalia, Mikhail"]
[WhiteFideId "501999"]
[BlackFideId "4119150"]
[WhiteElo "2416"]
[BlackElo "2667"]
[Result "1-0"]
[Round "01"]
[TimeControl "180+1"]
[Date "2022.06.01"]
[WhiteClock "0:00:48"]
[BlackClock "0:00:06"]

1. d4 {[%clk 0:02:58]}  Nf6 {[%clk 0:02:59]} 2. Nf3 {[%clk 0:02:58]}  g6 {[%clk 0:02:59]} 3. Bg5 {[%clk 0:02:58]}  Bg7 {[%clk 0:02:59]} 4. Nbd2 {[%clk 0:02:57]}  d5 {[%clk 0:02:58]} 5. e3 {[%clk 0:02:57]}  O-O {[%clk 0:02:59]} 6. Be2 {[%clk 0:02:57]}  c5 {[%clk 0:02:58]} 7. c3 {[%clk 0:02:57]}  cxd4 {[%clk 0:02:56]} 8. exd4 {[%clk 0:02:55]}  Nc6 {[%clk 0:02:56]} 9. O-O {[%clk 0:02:55]}  Bf5 {[%clk 0:02:55]} 10. Qb3 {[%clk 0:02:43]}  Na5 {[%clk 0:02:46]} 11. Qa4 {[%clk 0:02:42]}  b6 {[%clk 0:02:41]} 12. Ba6 {[%clk 0:02:28]}  h6 {[%clk 0:02:40]} 13. Bh4 {[%clk 0:02:25]}  Bd7 {[%clk 0:02:32]} 14. Bb5 {[%clk 0:01:55]}  Bxb5 {[%clk 0:02:31]} 15. Qxb5 {[%clk 0:01:55]}  a6 {[%clk 0:02:32]} 16. Qd3 {[%clk 0:01:53]}  b5 {[%clk 0:02:31]} 17. Bxf6 {[%clk 0:01:50]}  Bxf6 {[%clk 0:02:31]} 18. Nb3 {[%clk 0:01:51]}  Nc4 {[%clk 0:02:29]} 19. Rab1 {[%clk 0:01:51]}  a5 {[%clk 0:02:27]} 20. Nc5 {[%clk 0:01:51]}  a4 {[%clk 0:02:27]} 21. b3 {[%clk 0:01:49]}  axb3 {[%clk 0:02:26]} 22. axb3 {[%clk 0:01:50]}  Nd6 {[%clk 0:02:26]} 23. Rfe1 {[%clk 0:01:49]}  Kg7 {[%clk 0:02:22]} 24. h3 {[%clk 0:01:46]}  Qc7 {[%clk 0:02:20]} 25. Ne5 {[%clk 0:01:42]}  Bxe5 {[%clk 0:01:09]} 26. Rxe5 {[%clk 0:01:41]}  Ra2 {[%clk 0:00:48]} 27. Rxd5 {[%clk 0:01:32]}  Rfa8 {[%clk 0:00:45]} 28. Re5 {[%clk 0:01:30]}  Nf5 {[%clk 0:00:44]} 29. Ree1 {[%clk 0:01:17]}  b4 {[%clk 0:00:43]} 30. cxb4 {[%clk 0:01:12]}  Qf4 {[%clk 0:00:42]} 31. Rf1 {[%clk 0:01:03]}  Nxd4 {[%clk 0:00:41]} 32. Qe4 {[%clk 0:00:57]}  Qf6 {[%clk 0:00:30]} 33. Rbe1 {[%clk 0:00:52]}  e6 {[%clk 0:00:27]} 34. Nd7 {[%clk 0:00:50]}  Ne2+ {[%clk 0:00:05]} 35. Rxe2 {[%clk 0:00:49]}  Rxe2 {[%clk 0:00:05]} 36. Nxf6 {[%clk 0:00:48]}  Rxe4 {[%clk 0:00:04]} 37. Nxe4 {[%clk 0:00:49]}  Rb8 {[%clk 0:00:05]} 38. Nd2 {[%clk 0:00:48]}  Rxb4 {[%clk 0:00:05]} 39. Rc1 {[%clk 0:00:48]}  Rd4 {[%clk 0:00:05]} 40. Nf3 {[%clk 0:00:48]}  Rd3 {[%clk 0:00:05]} 41. Rb1 {[%clk 0:00:48]}  Rd5 {[%clk 0:00:05]} 42. b4 {[%clk 0:00:48]}  Rb5 {[%clk 0:00:06]} 43. Nd4 {[%clk 0:00:49]}  Rb6 {[%clk 0:00:06]} 44. b5 {[%clk 0:00:49]}  e5 {[%clk 0:00:07]} 45. Nc2 {[%clk 0:00:47]}  Kf6 {[%clk 0:00:06]} 46. Ne3 {[%clk 0:00:48]}  Ke6 {[%clk 0:00:06]} 47. Nc4 {[%clk 0:00:48]} 1-0


[Site "https://www.chess.com"]

[Event "Titled Tuesday Blitz May 31 Late 2022"]
[White "Lomaia, Diana"]
[Black "Leitao, Rafael"]
[WhiteFideId "13612476"]
[BlackFideId "2101246"]
[WhiteElo "1744"]
[BlackElo "2609"]
[Result "1-0"]
[Round "01"]
[TimeControl "180+1"]
[Date "2022.06.01"]
[WhiteClock "0:00:44"]
[BlackClock "0:00:10"]

1. d4 {[%clk 0:03:00]}  Nf6 {[%clk 0:02:56]} 2. c4 {[%clk 0:03:01]}  e6 {[%clk 0:02:55]} 3. Nf3 {[%clk 0:03:01]}  d5 {[%clk 0:02:54]} 4. Nc3 {[%clk 0:03:00]}  Bb4 {[%clk 0:02:55]} 5. Bg5 {[%clk 0:03:00]}  h6 {[%clk 0:02:47]} 6. Bxf6 {[%clk 0:03:00]}  Qxf6 {[%clk 0:02:47]} 7. Qa4+ {[%clk 0:03:00]}  Nc6 {[%clk 0:02:46]} 8. e3 {[%clk 0:03:00]}  O-O {[%clk 0:02:39]} 9. Rc1 {[%clk 0:03:00]}  Bd7 {[%clk 0:02:36]} 10. cxd5 {[%clk 0:02:58]}  exd5 {[%clk 0:02:34]} 11. Qb3 {[%clk 0:02:57]}  a5 {[%clk 0:02:14]} 12. Bb5 {[%clk 0:02:50]}  a4 {[%clk 0:02:04]} 13. Bxa4 {[%clk 0:02:36]}  Bxc3+ {[%clk 0:01:58]} 14. Rxc3 {[%clk 0:02:32]}  Na5 {[%clk 0:01:07]} 15. Qb4 {[%clk 0:02:24]}  Bxa4 {[%clk 0:01:00]} 16. Qxa4 {[%clk 0:02:25]}  Nc4 {[%clk 0:00:59]} 17. Qb3 {[%clk 0:02:19]}  c6 {[%clk 0:00:57]} 18. O-O {[%clk 0:02:14]}  b5 {[%clk 0:00:57]} 19. a3 {[%clk 0:02:13]}  Rfb8 {[%clk 0:00:56]} 20. Qc2 {[%clk 0:02:06]}  Rb6 {[%clk 0:00:56]} 21. e4 {[%clk 0:02:01]}  dxe4 {[%clk 0:00:54]} 22. Qxe4 {[%clk 0:02:02]}  Nxb2 {[%clk 0:00:51]} 23. Ne5 {[%clk 0:02:01]}  Re8 {[%clk 0:00:44]} 24. Qc2 {[%clk 0:01:52]}  Na4 {[%clk 0:00:39]} 25. Rf3 {[%clk 0:01:51]}  Qe6 {[%clk 0:00:37]} 26. Rxf7 {[%clk 0:01:47]}  Rbb8 {[%clk 0:00:33]} 27. Rc7 {[%clk 0:01:37]}  c5 {[%clk 0:00:33]} 28. Nc6 {[%clk 0:01:32]}  Rbc8 {[%clk 0:00:26]} 29. d5 {[%clk 0:01:32]}  Qd6 {[%clk 0:00:26]} 30. Rxc8 {[%clk 0:01:28]}  Rxc8 {[%clk 0:00:25]} 31. Na7 {[%clk 0:01:28]}  Rb8 {[%clk 0:00:25]} 32. Qf5 {[%clk 0:01:25]}  b4 {[%clk 0:00:22]} 33. Nc6 {[%clk 0:01:25]}  Rf8 {[%clk 0:00:21]} 34. Qc2 {[%clk 0:01:19]}  Nb6 {[%clk 0:00:20]} 35. axb4 {[%clk 0:01:17]}  cxb4 {[%clk 0:00:20]} 36. Rd1 {[%clk 0:01:17]}  Nxd5 {[%clk 0:00:21]} 37. Rxd5 {[%clk 0:01:16]}  Qe6 {[%clk 0:00:20]} 38. Re5 {[%clk 0:01:13]}  Qd6 {[%clk 0:00:19]} 39. Re1 {[%clk 0:01:13]}  Rf7 {[%clk 0:00:19]} 40. Re8+ {[%clk 0:01:10]}  Rf8 {[%clk 0:00:19]} 41. Qc4+ {[%clk 0:01:09]}  Kh7 {[%clk 0:00:17]} 42. Qe4+ {[%clk 0:01:09]}  Kg8 {[%clk 0:00:16]} 43. Ne7+ {[%clk 0:01:07]}  Kf7 {[%clk 0:00:16]} 44. Rxf8+ {[%clk 0:01:04]}  Kxf8 {[%clk 0:00:17]} 45. Ng6+ {[%clk 0:01:03]}  Kg8 {[%clk 0:00:16]} 46. h4 {[%clk 0:01:00]}  Qd1+ {[%clk 0:00:16]} 47. Kh2 {[%clk 0:01:00]}  b3 {[%clk 0:00:16]} 48. Qe6+ {[%clk 0:00:58]}  Kh7 {[%clk 0:00:16]} 49. Nf8+ {[%clk 0:00:58]}  Kh8 {[%clk 0:00:16]} 50. Qe8 {[%clk 0:00:53]}  Qd6+ {[%clk 0:00:16]} 51. g3 {[%clk 0:00:52]}  b2 {[%clk 0:00:15]} 52. Ne6+ {[%clk 0:00:48]}  Kh7 {[%clk 0:00:15]} 53. Qf7 {[%clk 0:00:44]}  Qe5 {[%clk 0:00:09]} 54. Nf8+ {[%clk 0:00:44]}  Kh8 {[%clk 0:00:09]} 55. Ng6+ {[%clk 0:00:44]}  Kh7 {[%clk 0:00:10]} 56. Nxe5 {[%clk 0:00:44]}  b1=Q {[%clk 0:00:10]} 57. Qf4 {[%clk 0:00:44]} 1-0


[Site "https://www.chess.com"]